[Event "Niedersachsen-ch Meister 2024"]
[Site "Verden Aller"]
[Date "2024.01.06"]
[Round "5.1"]
[White "Hampel, Felix"]
[Black "Abel, Dennes"]
[Result "1/2-1/2"]
[ECO "A38"]
[WhiteElo "2294"]
[BlackElo "2417"]
[Annotator "RC"]
[PlyCount "73"]
[EventDate "2024.01.01"]
[EventType "swiss"]
[EventCountry "GER"]
[SourceTitle "playchess.com"]
[Source "ChessBase"]
[SourceQuality "1"]
[TimeControl "40/5400+30:1800+30"]

1. c4 {[%emt 0:00:03]} Nf6 {[%emt 0:00:37]} 2. Nf3 {[%emt 0:00:11]} g6 {[%emt 0:00:27]} 3. g3 {[%emt 0:00:17]} Bg7 {[%emt 0:00:28]} 4. Bg2 {[%emt 0:00:17]} c5 {[%emt 0:00:26]} 5. d4 {[%emt 0:01:39]} cxd4 {[%emt 0:04:06]} 6. Nxd4 {[%emt 0:03:31]} Nc6 {[%emt 0:00:09]} 7. Nc3 {[%emt 0:00:58]} h5 {[%emt 0:01:23]} 8. h3 {[%emt 0:06:32]} O-O {[%emt 0:01:59]} 9. O-O {[%emt 0:02:11]} d6 {[%emt 0:02:20]} 10. Be3 {[%emt 0:08:59]} Bd7 {[%emt 0:08:13]} 11. b3 {[%emt 0:12:53]} Nxd4 {[%emt 0:10:54]} 12. Bxd4 {[%emt 0:00:18]} Bc6 {[%emt 0:00:16]} 13. e4 {[%emt 0:05:59]} Nd7 {[%emt 0:07:05]} 14. Bxg7 {[%emt 0:02:36]} Kxg7 {[%emt 0:01:09]} 15. Qd4+ {[%emt 0:00:18]} Kg8 {[%emt 0:01:39]} 16. Nd5 {[%emt 0:06:29]} e5 {[%emt 0:12:13]} 17. Qd2 {[%emt 0:00:28]} Nf6 {[%emt 0:01:10]} 18. Nc3 {[%emt 0:03:46]} Qe7 {[%emt 0:03:02]} 19. Rad1 {[%emt 0:00:32]} Rad8 {[%emt 0:03:39]} 20. Qh6 {[%emt 0:01:59]} Rfe8 {[%emt 0:08:30]} 21. Rd3 {[%emt 0:02:56]} Nd7 {[%emt 0:01:58]} 22. Nd5 {[%emt 0:09:25]} Bxd5 {[%emt 0:02:06]} 23. Rxd5 {[%emt 0:00:09]} b6 {[%emt 0:08:53]} 24. Rfd1 {[%emt 0:04:15]} Nc5 {[%emt 0:02:35]} 25. Qd2 {[%emt 0:00:37]} Ne6 {[%emt 0:01:04]} 26. Rxd6 {[%emt 0:00:40]} h4 {[%emt 0:03:00]} 27. Kh2 {[%emt 0:05:12]} Rxd6 {[%emt 0:01:43]} 28. Qxd6 {[%emt 0:00:17]} Qf6 {[%emt 0:00:08]} 29. Qc6 {[%emt 0:00:57]} Rd8 {[%emt 0:02:35]} 30. Rxd8+ {[%emt 0:01:09]} Qxd8 {[%emt 0:00:03]} 31. Qd5 {[%emt 0:01:21]} Qf6 {[%emt 0:00:09]} 32. Qd2 {[%emt 0:01:45]} Nd4 {[%emt 0:01:45]} 33. b4 {[%emt 0:05:10]} Qd6 {[%emt 0:02:01]} 34. Qc3 {[%emt 0:01:17]} Qf6 {[%emt 0:01:54]} 35. Qd2 {[%emt 0:01:12]} Qd6 {[%emt 0:00:06]} 36. Qc3 {[%emt 0:00:08]} Qf6 {[%emt 0:00:37]} 37. Qd2 {[%emt 0:05:44]} 1/2-1/2

[Event "Niedersachsen-ch Meister 2024"]
[Site "Verden Aller"]
[Date "2024.01.06"]
[Round "5.2"]
[White "Mueer, Sebastian"]
[Black "Nechitaylo, Nikita"]
[Result "0-1"]
[ECO "B56"]
[WhiteElo "2189"]
[BlackElo "2221"]
[Annotator "RC"]
[PlyCount "84"]
[EventDate "2024.01.01"]
[EventType "swiss"]
[EventCountry "GER"]
[SourceTitle "playchess.com"]
[Source "ChessBase"]
[SourceQuality "1"]
[TimeControl "40/5400+30:1800+30"]

1. e4 {[%emt 0:09:23]} c5 {[%emt 0:00:06]} 2. Nf3 {[%emt 0:00:08]} d6 {[%emt 0:00:03]} 3. d4 {[%emt 0:00:37]} cxd4 {[%emt 0:00:07]} 4. Nxd4 {[%emt 0:00:05]} Nf6 {[%emt 0:00:11]} 5. Nc3 {[%emt 0:00:09]} Nc6 {[%emt 0:00:06]} 6. f3 {[%emt 0:00:07]} e5 {[%emt 0:00:05]} 7. Nb3 {[%emt 0:00:43]} Be7 {[%emt 0:00:07]} 8. Be3 {[%emt 0:00:30]} O-O {[%emt 0:00:06]} 9. Qe2 {[%emt 0:05:15]} d5 {[%emt 0:00:06]} 10. exd5 {[%emt 0:03:16]} Nxd5 {[%emt 0:00:09]} 11. Nxd5 {[%emt 0:00:52]} Qxd5 {[%emt 0:00:07]} 12. Qc4 {[%emt 0:05:14]} Qxc4 {[%emt 0:03:09]} 13. Bxc4 {[%emt 0:00:02]} Nb4 {[%emt 0:00:14]} 14. Bd3 {[%emt 0:06:26]} Nxd3+ {[%emt 0:02:45]} 15. cxd3 {[%emt 0:00:02]} Rd8 {[%emt 0:00:25]} 16. Ke2 {[%emt 0:00:29]} Bf5 {[%emt 0:01:42]} 17. Rhd1 {[%emt 0:00:27]} Rac8 {[%emt 0:05:33]} 18. Rac1 {[%emt 0:00:27]} Rxc1 {[%emt 0:00:24]} 19. Nxc1 {[%emt 0:00:02]} a5 {[%emt 0:09:24]} 20. Nb3 {[%emt 0:03:10]} Rc8 {[%emt 0:09:15]} 21. Nxa5 {[%emt 0:09:28]} Bb4 {[%emt 0:00:18]} 22. Nc4 {[%emt 0:08:26]} b5 {[%emt 0:00:28]} 23. Bd2 {[%emt 0:03:18]} bxc4 {[%emt 0:20:38]} 24. Bxb4 {[%emt 0:00:07]} cxd3+ {[%emt 0:00:29]} 25. Ke1 {[%emt 0:44:17]} Rc4 {[%emt 0:06:28]} 26. Bc3 {[%emt 0:00:00]} e4 {[%emt 0:00:20]} 27. Kf2 {[%emt 0:00:00]} exf3 {[%emt 0:02:01]} 28. gxf3 {[%emt 0:01:30]} h5 {[%emt 0:01:07]} 29. Rg1 {[%emt 0:00:00]} f6 {[%emt 0:01:04]} 30. a4 {[%emt 0:00:00]} Rh4 {[%emt 0:04:09]} 31. a5 {[%emt 0:00:00]} Rxh2+ {[%emt 0:01:09]} 32. Rg2 {[%emt 0:00:00]} Rxg2+ {[%emt 0:01:41]} 33. Kxg2 {[%emt 0:00:00]} Bc8 {[%emt 0:00:16]} 34. Kg3 {[%emt 0:00:00]} g5 {[%emt 0:00:21]} 35. b4 {[%emt 0:00:00]} Ba6 {[%emt 0:01:34]} 36. f4 {[%emt 0:00:00]} h4+ {[%emt 0:00:58]} 37. Kg4 {[%emt 0:00:00]} Bc8+ {[%emt 0:00:06]} 38. Kf3 {[%emt 0:00:00]} Bb7+ {[%emt 0:00:39]} 39. Kg4 {[%emt 0:00:00]} Bc8+ {[%emt 0:00:47]} 40. Kf3 {[%emt 0:00:00]} g4+ {[%emt 0:00:08]} 41. Kg2 {[%emt 0:27:18]} Bb7+ {[%emt 0:31:17]} 42. Kh2 {[%emt 0:00:08]} Ba6 {[%emt 0:00:49]} 0-1

[Event "Niedersachsen-ch Meister 2024"]
[Site "Verden Aller"]
[Date "2024.01.06"]
[Round "5.3"]
[White "Stelmaszyk, Nico"]
[Black "Voege, Tobias"]
[Result "0-1"]
[ECO "C13"]
[WhiteElo "2363"]
[BlackElo "2283"]
[Annotator "RC"]
[PlyCount "112"]
[EventDate "2024.01.01"]
[EventType "swiss"]
[EventCountry "GER"]
[SourceTitle "playchess.com"]
[Source "ChessBase"]
[SourceQuality "1"]
[TimeControl "40/5400+30:1800+30"]

1. e4 {[%emt 0:00:08]} e6 {[%emt 0:00:58]} 2. d4 {[%emt 0:00:02]} d5 {[%emt 0:00:09]} 3. Nc3 {[%emt 0:00:05]} Nf6 {[%emt 0:00:05]} 4. Bg5 {[%emt 0:00:04]} dxe4 {[%emt 0:00:07]} 5. Nxe4 {[%emt 0:00:05]} Be7 {[%emt 0:00:05]} 6. Bxf6 {[%emt 0:00:06]} gxf6 {[%emt 0:00:14]} 7. Nf3 {[%emt 0:00:05]} f5 {[%emt 0:00:12]} 8. Nc3 {[%emt 0:00:04]} a6 {[%emt 0:00:08]} 9. g3 {[%emt 0:00:05]} b5 {[%emt 0:00:04]} 10. Bg2 {[%emt 0:00:03]} Bb7 {[%emt 0:00:08]} 11. Qe2 {[%emt 0:00:06]} Qd6 {[%emt 0:02:18]} 12. O-O-O {[%emt 0:03:17]} Nd7 {[%emt 0:01:48]} 13. d5 {[%emt 0:09:34]} b4 {[%emt 0:29:08]} 14. dxe6 {[%emt 0:16:31]} Qxe6 {[%emt 0:00:45]} 15. Qxe6 {[%emt 0:00:17]} fxe6 {[%emt 0:00:08]} 16. Ne2 {[%emt 0:00:16]} O-O-O {[%emt 0:16:32]} 17. Ned4 {[%emt 0:04:10]} Nc5 {[%emt 0:02:22]} 18. Nb3 {[%emt 0:29:18]} Ne4 {[%emt 0:07:15]} 19. Rxd8+ {[%emt 0:02:57]} Rxd8 {[%emt 0:00:35]} 20. Nfd4 {[%emt 0:00:58]} e5 {[%emt 0:05:24]} 21. Ne6 {[%emt 0:09:30]} Rd6 {[%emt 0:06:26]} 22. f3 {[%emt 0:00:17]} Nf2 {[%emt 0:03:31]} 23. Rf1 {[%emt 0:00:48]} Ng4 {[%emt 0:07:07]} 24. fxg4 {[%emt 0:10:33]} Bxg2 {[%emt 0:00:10]} 25. Rf2 {[%emt 0:00:22]} fxg4 {[%emt 0:04:04]} 26. Rxg2 {[%emt 0:00:06]} Rxe6 {[%emt 0:00:04]} 27. Kd2 {[%emt 0:00:32]} e4 {[%emt 0:05:39]} 28. Na5 {[%emt 0:10:11]} Bg5+ {[%emt 0:05:09]} 29. Ke1 {[%emt 0:00:52]} Kd7 {[%emt 0:00:44]} 30. Nc4 {[%emt 0:00:19]} Kc6 {[%emt 0:00:43]} 31. Rf2 {[%emt 0:01:45]} h6 {[%emt 0:01:23]} 32. Rf5 {[%emt 0:00:44]} Kd7 {[%emt 0:01:23]} 33. Ne5+ {[%emt 0:00:37]} Ke7 {[%emt 0:00:31]} 34. Nxg4 {[%emt 0:00:49]} Rc6 {[%emt 0:00:22]} 35. Re5+ {[%emt 0:00:19]} Kd6 {[%emt 0:00:39]} 36. Rxe4 {[%emt 0:01:17]} Rxc2 {[%emt 0:00:21]} 37. Rxb4 {[%emt 0:00:50]} h5 {[%emt 0:01:12]} 38. Nf2 {[%emt 0:00:22]} Be3 {[%emt 0:00:36]} 39. Ne4+ {[%emt 0:00:40]} Ke5 {[%emt 0:00:10]} 40. Nc3 {[%emt 0:00:23]} Bd2+ {[%emt 0:01:02]} 41. Kd1 {[%emt 0:30:24]} Bxc3 {[%emt 0:30:14]} 42. bxc3 {[%emt 0:00:16]} Rxh2 {[%emt 0:00:00]} 43. Ra4 {[%emt 0:00:00]} c5 {[%emt 0:00:00]} 44. Rxa6 {[%emt 0:00:00]} Ke4 {[%emt 0:00:00]} 45. Rh6 {[%emt 0:00:00]} Kd3 {[%emt 0:00:00]} 46. Ke1 {[%emt 0:00:00]} Kxc3 {[%emt 0:00:00]} 47. g4 {[%emt 0:00:00]} h4 {[%emt 0:00:00]} 48. g5 {[%emt 0:00:00]} c4 {[%emt 0:00:00]} 49. a4 {[%emt 0:00:00]} Kb4 {[%emt 0:00:00]} 50. a5 {[%emt 0:00:00]} Kxa5 {[%emt 0:00:58]} 51. g6 {[%emt 0:00:00]} Kb4 {[%emt 0:01:08]} 52. g7 {[%emt 0:00:02]} Rg2 {[%emt 0:00:32]} 53. Rxh4 {[%emt 0:00:02]} Rxg7 {[%emt 0:00:18]} 54. Kd2 {[%emt 0:01:22]} Kb3 {[%emt 0:00:29]} 55. Rh6 {[%emt 0:05:06]} c3+ {[%emt 0:00:37]} 56. Kd3 {[%emt 0:00:13]} Rd7+ {[%emt 0:04:33]} 0-1

[Event "Niedersachsen-ch Meister 2024"]
[Site "Verden Aller"]
[Date "2024.01.06"]
[Round "5.4"]
[White "von Mettenheim, Johannes"]
[Black "Polster, Christian"]
[Result "1/2-1/2"]
[ECO "D02"]
[WhiteElo "2284"]
[BlackElo "2244"]
[Annotator "RC"]
[PlyCount "164"]
[EventDate "2024.01.01"]
[EventType "swiss"]
[EventCountry "GER"]
[SourceTitle "playchess.com"]
[Source "ChessBase"]
[SourceQuality "1"]
[TimeControl "40/5400+30:1800+30"]

1. Nf3 {[%emt 0:00:12]} Nf6 {[%emt 0:02:09]} 2. g3 {[%emt 0:00:08]} c5 {[%emt 0:02:11]} 3. Bg2 {[%emt 0:00:14]} d5 {[%emt 0:00:25]} 4. d4 {[%emt 0:00:19]} cxd4 {[%emt 0:00:32]} 5. O-O {[%emt 0:00:11]} e6 {[%emt 0:01:14]} 6. Nxd4 {[%emt 0:00:09]} e5 {[%emt 0:08:59]} 7. Nb3 {[%emt 0:00:40]} Nc6 {[%emt 0:01:31]} 8. Bg5 {[%emt 0:05:11]} Be6 {[%emt 0:05:06]} 9. e3 {[%emt 0:10:02]} Qd7 {[%emt 0:04:49]} 10. Nc3 {[%emt 0:03:24]} Ne4 {[%emt 0:08:00]} 11. Nxe4 {[%emt 0:01:00]} dxe4 {[%emt 0:00:11]} 12. Qxd7+ {[%emt 0:04:32]} Bxd7 {[%emt 0:13:37]} 13. Bh4 {[%emt 0:01:07]} f5 {[%emt 0:01:56]} 14. g4 {[%emt 0:04:17]} g5 {[%emt 0:04:02]} 15. Bxg5 {[%emt 0:00:14]} Rg8 {[%emt 0:00:15]} 16. Bh4 {[%emt 0:03:30]} Rxg4 {[%emt 0:11:24]} 17. Bg3 {[%emt 0:02:12]} Bh6 {[%emt 0:07:47]} 18. Rfe1 {[%emt 0:26:29]} O-O-O {[%emt 0:03:11]} 19. Bh3 {[%emt 0:12:57]} f4 {[%emt 0:04:06]} 20. exf4 {[%emt 0:04:03]} Rxg3+ {[%emt 0:01:40]} 21. hxg3 {[%emt 0:00:04]} Bxh3 {[%emt 0:00:11]} 22. fxe5 {[%emt 0:00:13]} Bf5 {[%emt 0:04:36]} 23. e6 {[%emt 0:01:26]} Ne5 {[%emt 0:00:56]} 24. Kg2 {[%emt 0:01:01]} Bg4 {[%emt 0:00:41]} 25. Nc5 {[%emt 0:01:25]} Bf3+ {[%emt 0:00:37]} 26. Kh3 {[%emt 0:01:43]} Ng4 {[%emt 0:08:11]} 27. Nxe4 {[%emt 0:00:45]} Rd5 {[%emt 0:00:43]} 28. Kh4 {[%emt 0:04:49]} Nxf2 {[%emt 0:00:40]} 29. Nd6+ {[%emt 0:01:03]} Kc7 {[%emt 0:03:53]} 30. g4 {[%emt 0:00:28]} Kxd6 {[%emt 0:00:53]} 31. e7 {[%emt 0:01:43]} Bg5+ {[%emt 0:00:27]} 32. Kg3 {[%emt 0:00:05]} Bxe7 {[%emt 0:00:08]} 33. Kxf3 {[%emt 0:00:09]} Nh3 {[%emt 0:00:13]} 34. Rad1 {[%emt 0:00:15]} Ng5+ {[%emt 0:00:33]} 35. Ke3 {[%emt 0:00:31]} Bf6 {[%emt 0:00:46]} 36. c3 {[%emt 0:00:12]} Be5 {[%emt 0:00:48]} 37. Rxd5+ {[%emt 0:00:34]} Kxd5 {[%emt 0:00:02]} 38. Rh1 {[%emt 0:00:09]} Ke6 {[%emt 0:01:16]} 39. Rh5 {[%emt 0:00:20]} Kf6 {[%emt 0:00:13]} 40. Rh6+ {[%emt 0:00:25]} Kg7 {[%emt 0:01:38]} 41. Rh1 {[%emt 0:30:17]} Kf7 {[%emt 0:00:30]} 42. Rf1+ {[%emt 0:00:00]} Ke7 {[%emt 0:00:30]} 43. Rf5 {[%emt 0:00:00]} Nf7 {[%emt 0:00:40]} 44. Ke4 {[%emt 0:00:00]} Bf6 {[%emt 0:08:44]} 45. Kd5 {[%emt 0:00:00]} h6 {[%emt 0:02:00]} 46. Rf2 {[%emt 0:00:00]} Nd8 {[%emt 0:01:13]} 47. Rh2 {[%emt 0:00:00]} Bg5 {[%emt 0:02:34]} 48. c4 {[%emt 0:00:00]} Nc6 {[%emt 0:03:56]} 49. a3 {[%emt 0:00:00]} Kd7 {[%emt 0:01:43]} 50. b4 {[%emt 0:00:16]} a5 {[%emt 0:01:32]} 51. bxa5 {[%emt 0:02:36]} Nxa5 {[%emt 0:00:26]} 52. Rb2 {[%emt 0:01:55]} Kc7 {[%emt 0:00:31]} 53. Rf2 {[%emt 0:00:52]} Nc6 {[%emt 0:00:46]} 54. Rf7+ {[%emt 0:02:17]} Kb6 {[%emt 0:01:01]} 55. Rf3 {[%emt 0:00:58]} Ne7+ {[%emt 0:05:19]} 56. Kd6 {[%emt 0:00:16]} Nc6 {[%emt 0:00:46]} 57. Kd5 {[%emt 0:00:38]} Ka5 {[%emt 0:01:29]} 58. Rb3 {[%emt 0:01:05]} Nd8 {[%emt 0:01:32]} 59. c5 {[%emt 0:00:55]} Ka4 {[%emt 0:00:28]} 60. Rf3 {[%emt 0:03:25]} Nc6 {[%emt 0:00:21]} 61. Kd6 {[%emt 0:00:48]} Be7+ {[%emt 0:01:40]} 62. Kd5 {[%emt 0:00:57]} Na5 {[%emt 0:00:20]} 63. Rh3 {[%emt 0:01:54]} Bg5 {[%emt 0:00:18]} 64. Rf3 {[%emt 0:00:30]} Bc1 {[%emt 0:00:52]} 65. Rf1 {[%emt 0:00:57]} Bg5 {[%emt 0:02:18]} 66. Rf3 {[%emt 0:00:04]} Nb3 {[%emt 0:00:43]} 67. Rf7 {[%emt 0:00:18]} Na5 {[%emt 0:00:17]} 68. Rf3 {[%emt 0:00:07]} Kb5 {[%emt 0:00:20]} 69. Rf1 {[%emt 0:00:47]} Nb3 {[%emt 0:00:47]} 70. Rb1 {[%emt 0:00:31]} Ka4 {[%emt 0:00:12]} 71. c6 {[%emt 0:00:24]} bxc6+ {[%emt 0:00:27]} 72. Kxc6 {[%emt 0:00:06]} Kxa3 {[%emt 0:00:15]} 73. Kd5 {[%emt 0:00:04]} Kb4 {[%emt 0:00:18]} 74. Ke5 {[%emt 0:00:46]} Kc3 {[%emt 0:00:33]} 75. Kf5 {[%emt 0:00:09]} Nd4+ {[%emt 0:01:01]} 76. Kg6 {[%emt 0:00:08]} Nf3 {[%emt 0:00:31]} 77. Kh5 {[%emt 0:00:30]} Be3 {[%emt 0:01:05]} 78. Ra1 {[%emt 0:00:30]} Kd3 {[%emt 0:00:21]} 79. Ra3+ {[%emt 0:00:07]} Ke4 {[%emt 0:00:09]} 80. Rxe3+ {[%emt 0:00:05]} Kxe3 {[%emt 0:00:07]} 81. Kxh6 {[%emt 0:00:10]} Kf4 {[%emt 0:00:08]} 82. g5 {[%emt 0:00:05]} Nxg5 {[%emt 0:00:07]} 1/2-1/2

[Event "Niedersachsen-ch Meister 2024"]
[Site "Verden Aller"]
[Date "2024.01.06"]
[Round "5.5"]
[White "Gentemann, Moritz"]
[Black "Knuedel, Torben"]
[Result "1/2-1/2"]
[ECO "A18"]
[WhiteElo "2239"]
[BlackElo "2287"]
[Annotator "RC"]
[PlyCount "186"]
[EventDate "2024.01.01"]
[EventType "swiss"]
[EventCountry "GER"]
[SourceTitle "playchess.com"]
[Source "ChessBase"]
[SourceQuality "1"]
[TimeControl "40/5400+30:1800+30"]

1. c4 {[%emt 0:03:26]} Nf6 {[%emt 0:00:05]} 2. Nc3 {[%emt 0:00:10]} e6 {[%emt 0:00:13]} 3. e4 {[%emt 0:00:07]} Nc6 {[%emt 0:09:14]} 4. Nf3 {[%emt 0:02:03]} e5 {[%emt 0:04:15]} 5. d4 {[%emt 0:01:30]} exd4 {[%emt 0:07:46]} 6. Nxd4 {[%emt 0:00:09]} d6 {[%emt 0:06:32]} 7. Be2 {[%emt 0:01:03]} Nxd4 {[%emt 0:02:20]} 8. Qxd4 {[%emt 0:00:11]} Be7 {[%emt 0:00:11]} 9. Bf4 {[%emt 0:18:51]} O-O {[%emt 0:02:15]} 10. Rd1 {[%emt 0:00:11]} Be6 {[%emt 0:04:24]} 11. O-O {[%emt 0:03:13]} Nd7 {[%emt 0:02:50]} 12. Nd5 {[%emt 0:10:39]} Bxd5 {[%emt 0:02:41]} 13. Qxd5 {[%emt 0:03:03]} Bf6 {[%emt 0:08:54]} 14. b3 {[%emt 0:06:14]} b6 {[%emt 0:02:58]} 15. Bg4 {[%emt 0:04:18]} g6 {[%emt 0:12:34]} 16. Bxd7 {[%emt 0:07:05]} Qxd7 {[%emt 0:00:05]} 17. e5 {[%emt 0:00:11]} Qf5 {[%emt 0:00:59]} 18. Bh6 {[%emt 0:00:33]} Qxe5 {[%emt 0:00:19]} 19. Qxe5 {[%emt 0:01:22]} Bxe5 {[%emt 0:00:04]} 20. Bxf8 {[%emt 0:00:12]} Kxf8 {[%emt 0:00:09]} 21. f4 {[%emt 0:00:33]} Bf6 {[%emt 0:08:45]} 22. Rfe1 {[%emt 0:03:39]} a6 {[%emt 0:00:35]} 23. Kf2 {[%emt 0:33:17]} b5 {[%emt 0:01:40]} 24. Kf3 {[%emt 0:01:22]} b4 {[%emt 0:06:16]} 25. Rd5 {[%emt 0:16:06]} a5 {[%emt 0:00:26]} 26. Rb5 {[%emt 0:00:32]} Bd4 {[%emt 0:03:21]} 27. Rd5 {[%emt 0:04:42]} Bc5 {[%emt 0:00:34]} 28. g4 {[%emt 0:05:57]} a4 {[%emt 0:00:31]} 29. Rd2 {[%emt 0:00:21]} axb3 {[%emt 0:05:25]} 30. axb3 {[%emt 0:00:01]} Ra3 {[%emt 0:00:06]} 31. Rb1 {[%emt 0:00:55]} Ra8 {[%emt 0:01:49]} 32. Re1 {[%emt 0:01:31]} Ra3 {[%emt 0:00:12]} 33. Rb1 {[%emt 0:00:09]} Ra8 {[%emt 0:00:27]} 34. h3 {[%emt 0:00:50]} Re8 {[%emt 0:01:53]} 35. Re2 {[%emt 0:00:30]} Ra8 {[%emt 0:00:28]} 36. Ke4 {[%emt 0:00:19]} Ra5 {[%emt 0:03:07]} 37. Kd3 {[%emt 0:00:30]} Ra3 {[%emt 0:00:39]} 38. Reb2 {[%emt 0:01:28]} Ra8 {[%emt 0:04:28]} 39. Re1 {[%emt 0:00:09]} Ra3 {[%emt 0:00:29]} 40. Ke4 {[%emt 0:02:09]} Ra5 {[%emt 0:00:17]} 41. Kd3 {[%emt 0:06:51]} Ra3 {[%emt 0:01:20]} 42. Rf1 {[%emt 0:00:00]} Kg7 {[%emt 0:04:48]} 43. f5 {[%emt 0:01:00]} g5 {[%emt 0:01:40]} 44. Ke4 {[%emt 0:00:00]} Bb6 {[%emt 0:01:56]} 45. Kd3 {[%emt 0:00:00]} Kf6 {[%emt 0:00:32]} 46. Re1 {[%emt 0:00:00]} Ra8 {[%emt 0:03:52]} 47. Rbb1 {[%emt 0:00:00]} Rh8 {[%emt 0:03:49]} 48. Rh1 {[%emt 0:00:00]} h5 {[%emt 0:00:15]} 49. h4 {[%emt 0:00:00]} Re8 {[%emt 0:04:03]} 50. hxg5+ {[%emt 0:00:54]} Kxg5 {[%emt 0:00:06]} 51. gxh5 {[%emt 0:00:14]} Re3+ {[%emt 0:00:36]} 52. Kd2 {[%emt 0:00:25]} Kh6 {[%emt 0:00:44]} 53. Kc2 {[%emt 0:01:57]} Rc3+ {[%emt 0:04:43]} 54. Kd2 {[%emt 0:00:37]} Rf3 {[%emt 0:00:16]} 55. Kc2 {[%emt 0:00:16]} Bd4 {[%emt 0:05:30]} 56. Rhf1 {[%emt 0:00:24]} Rg3 {[%emt 0:00:56]} 57. Rfd1 {[%emt 0:00:50]} Rc3+ {[%emt 0:00:30]} 58. Kd2 {[%emt 0:00:26]} Kxh5 {[%emt 0:01:15]} 59. Rh1+ {[%emt 0:02:06]} Kg5 {[%emt 0:00:57]} 60. Rh7 {[%emt 0:00:24]} Kf6 {[%emt 0:00:43]} 61. Rh5 {[%emt 0:00:14]} c5 {[%emt 0:00:53]} 62. Ke2 {[%emt 0:00:15]} Re3+ {[%emt 0:00:12]} 63. Kd2 {[%emt 0:00:19]} Rg3 {[%emt 0:02:19]} 64. Kc2 {[%emt 0:00:32]} Be5 {[%emt 0:00:40]} 65. Kd2 {[%emt 0:02:07]} Rc3 {[%emt 0:01:25]} 66. Ke2 {[%emt 0:00:23]} Bf4 {[%emt 0:01:01]} 67. Kf2 {[%emt 0:01:05]} Bg5 {[%emt 0:01:34]} 68. Rh7 {[%emt 0:00:01]} Rd3 {[%emt 0:00:23]} 69. Kg2 {[%emt 0:00:42]} Rd2+ {[%emt 0:00:29]} 70. Kf3 {[%emt 0:00:11]} Rd4 {[%emt 0:00:16]} 71. Kg2 {[%emt 0:00:26]} Rg4+ {[%emt 0:00:24]} 72. Kh1 {[%emt 0:00:35]} Rg3 {[%emt 0:00:24]} 73. Kh2 {[%emt 0:00:56]} Bf4 {[%emt 0:00:09]} 74. Kh1 {[%emt 0:00:06]} Be5 {[%emt 0:00:10]} 75. Rh5 {[%emt 0:00:12]} Bf4 {[%emt 0:01:27]} 76. Rf1 {[%emt 0:00:26]} Bg5 {[%emt 0:00:52]} 77. Rg1 {[%emt 0:00:25]} Rxg1+ {[%emt 0:00:04]} 78. Kxg1 {[%emt 0:02:13]} Kxf5 {[%emt 0:00:05]} 79. Kf2 {[%emt 0:00:18]} f6 {[%emt 0:00:26]} 80. Ke2 {[%emt 0:01:59]} Ke4 {[%emt 0:00:10]} 81. Rh3 {[%emt 0:00:42]} f5 {[%emt 0:00:29]} 82. Rd3 {[%emt 0:00:17]} Bf4 {[%emt 0:00:21]} 83. Rh3 {[%emt 0:00:38]} Be5 {[%emt 0:00:54]} 84. Re3+ {[%emt 0:00:18]} Kf4 {[%emt 0:00:06]} 85. Rf3+ {[%emt 0:00:09]} Kg4 {[%emt 0:00:07]} 86. Ke3 {[%emt 0:01:06]} Bd4+ {[%emt 0:00:12]} 87. Ke2 {[%emt 0:00:05]} Kg5 {[%emt 0:01:32]} 88. Kd3 {[%emt 0:00:25]} Kg4 {[%emt 0:00:37]} 89. Ke2 {[%emt 0:00:02]} f4 {[%emt 0:01:01]} 90. Rd3 {[%emt 0:00:23]} Be5 {[%emt 0:00:57]} 91. Kf2 {[%emt 0:00:48]} Bd4+ {[%emt 0:00:35]} 92. Ke2 {[%emt 0:00:03]} Kf5 {[%emt 0:00:28]} 93. Kf3 {[%emt 0:00:15]} Be5 {[%emt 0:00:30]} 1/2-1/2

[Event "Niedersachsen-ch Meister 2024"]
[Site "Verden Aller"]
[Date "2024.01.06"]
[Round "5.6"]
[White "Laubsch, Bernd"]
[Black "Riemay, David"]
[Result "1-0"]
[ECO "B15"]
[WhiteElo "2259"]
[BlackElo "2213"]
[Annotator "RC"]
[PlyCount "39"]
[EventDate "2024.01.01"]
[EventType "swiss"]
[EventCountry "GER"]
[SourceTitle "playchess.com"]
[Source "ChessBase"]
[SourceQuality "1"]
[TimeControl "40/5400+30:1800+30"]

1. e4 {[%emt 0:02:09]} c6 {[%emt 0:00:03]} 2. d4 {[%emt 0:00:12]} d5 {[%emt 0:00:03]} 3. Nc3 {[%emt 0:00:10]} dxe4 {[%emt 0:00:04]} 4. Nxe4 {[%emt 0:00:18]} Nf6 {[%emt 0:00:02]} 5. Nxf6+ {[%emt 0:00:15]} exf6 {[%emt 0:00:05]} 6. c3 {[%emt 0:00:28]} Bd6 {[%emt 0:00:09]} 7. Bd3 {[%emt 0:00:39]} O-O {[%emt 0:00:09]} 8. Be3 {[%emt 0:03:28]} Re8 {[%emt 0:02:13]} 9. Qc2 {[%emt 0:02:21]} h5 {[%emt 0:00:40]} 10. O-O-O {[%emt 0:05:22]} Qa5 {[%emt 0:03:42]} 11. b3 {[%emt 0:06:42]} b5 {[%emt 0:01:34]} 12. Ne2 {[%emt 0:02:01]} Nd7 {[%emt 0:10:23]} 13. Ng3 {[%emt 0:02:19]} Nb6 {[%emt 0:00:07]} 14. Ne4 {[%emt 0:09:01]} Ba3+ {[%emt 0:02:21]} 15. Kb1 {[%emt 0:01:00]} Nc4 {[%emt 0:16:29]} 16. Bc1 {[%emt 0:18:19]} Bxc1 {[%emt 0:05:18]} 17. Qxc1 {[%emt 0:04:05]} Rb8 {[%emt 0:15:52]} 18. Rhe1 {[%emt 0:09:01]} Be6 {[%emt 0:04:28]} 19. Nc5 {[%emt 0:10:47]} Nb6 {[%emt 0:08:36]} 20. Rxe6 {[%emt 0:02:54]} 1-0

[Event "Niedersachsen-ch Meister 2024"]
[Site "Verden Aller"]
[Date "2024.01.06"]
[Round "5.7"]
[White "Bargsten, Justus"]
[Black "Pubantz, Jan"]
[Result "1/2-1/2"]
[ECO "B15"]
[WhiteElo "2216"]
[BlackElo "2288"]
[Annotator "RC"]
[PlyCount "47"]
[EventDate "2024.01.01"]
[EventType "swiss"]
[EventCountry "GER"]
[SourceTitle "playchess.com"]
[Source "ChessBase"]
[SourceQuality "1"]
[TimeControl "40/5400+30:1800+30"]

1. e4 {[%emt 0:00:02]} c6 {[%emt 0:02:37]} 2. d4 {[%emt 0:00:07]} d5 {[%emt 0:00:02]} 3. Nc3 {[%emt 0:00:05]} dxe4 {[%emt 0:00:04]} 4. Nxe4 {[%emt 0:00:06]} Nf6 {[%emt 0:00:02]} 5. Nxf6+ {[%emt 0:00:07]} exf6 {[%emt 0:00:03]} 6. c3 {[%emt 0:00:08]} Bd6 {[%emt 0:00:13]} 7. Bd3 {[%emt 0:00:06]} O-O {[%emt 0:00:09]} 8. Qc2 {[%emt 0:00:04]} c5 {[%emt 0:00:04]} 9. Ne2 {[%emt 0:00:47]} g6 {[%emt 0:00:24]} 10. dxc5 {[%emt 0:01:19]} Bxc5 {[%emt 0:00:09]} 11. Bh6 {[%emt 0:00:05]} Re8 {[%emt 0:00:22]} 12. O-O-O {[%emt 0:00:06]} Qc7 {[%emt 0:00:37]} 13. Qa4 {[%emt 0:00:06]} Nc6 {[%emt 0:01:44]} 14. Qh4 {[%emt 0:07:13]} Be6 {[%emt 0:02:36]} 15. Nf4 {[%emt 0:02:07]} Bxa2 {[%emt 0:01:14]} 16. Bb1 {[%emt 0:00:33]} Bc4 {[%emt 0:01:17]} 17. Nh5 {[%emt 0:00:35]} gxh5 {[%emt 0:03:50]} 18. Qxc4 {[%emt 0:00:25]} Na5 {[%emt 0:00:18]} 19. Qd3 {[%emt 0:04:32]} Nb3+ {[%emt 0:34:00]} 20. Kc2 {[%emt 0:00:06]} Na1+ {[%emt 0:00:10]} 21. Kc1 {[%emt 0:00:05]} Nb3+ {[%emt 0:01:31]} 22. Kc2 {[%emt 0:00:06]} Na1+ {[%emt 0:09:54]} 23. Kc1 {[%emt 0:00:07]} Nb3+ {[%emt 0:00:02]} 24. Kc2 {[%emt 0:00:32]} 1/2-1/2